fUSD/lending_fUSD_20240526
["ID","MTS","AMOUNT","RATE_DAILY","PERIOD"]
[327943921,1716689474212,-1559.51,0.00031506,5]
[327943922,1716689474221,-500.0,0.00031506,5]
[327943923,1716689474231,-500.0,0.00031506,5]
[327943924,1716689474241,-500.0,0.00031506,5]
[327943925,1716689474251,-184.43086011,0.00031506,5]
[327943926,1716689474261,-508.82883949,0.00031506,5]
[327943927,1716689474270,-500.0,0.00031506,5]
[327943928,1716689474279,-500.0,0.00031506,5]
[327943929,1716689474288,-500.0,0.00031506,5]
[327943930,1716689474297,-500.0,0.00031506,5]
[327943931,1716689474306,-509.22211213,0.00031506,5]
[327943932,1716689474316,-500.0,0.00031506,5]
[327943933,1716689474326,-500.0,0.00031506,5]
[327943934,1716689474336,-500.0,0.00031506,5]
[327943935,1716689474346,-500.0,0.00031506,5]
[327943936,1716689474355,-2287.92,0.00031506,5]
[327943937,1716689474365,-1597.17,0.00031506,5]
[327943938,1716689474374,-500.0,0.00031506,5]
[327943939,1716689474383,-500.0,0.00031506,5]
[327943940,1716689474392,-500.0,0.00031506,5]
[327943941,1716689474402,-500.0,0.00031506,5]
[327943942,1716689474411,-500.0,0.00031506,5]
[327943943,1716689474421,-500.0,0.00031506,5]
[327943944,1716689474431,-500.0,0.00031506,5]
[327943945,1716689474444,-500.0,0.00031506,5]
[327943946,1716689474456,-500.0,0.00031506,5]
[327943947,1716689474467,-500.0,0.00031506,5]
[327943948,1716689474477,-500.0,0.00031506,5]
[327943949,1716689474488,-500.0,0.00031506,5]
[327943950,1716689474498,-500.0,0.00031506,5]
[327943951,1716689474507,-643.68,0.00031506,5]
[327943952,1716689474516,-500.0,0.00031506,5]
[327943953,1716689474527,-500.0,0.00031506,5]
[327943954,1716689474539,-500.0,0.00031506,5]
[327943955,1716689474548,-500.0,0.00031506,5]
[327943956,1716689474558,-500.0,0.00031506,5]
[327943957,1716689474567,-500.0,0.00031506,5]
[327943958,1716689474576,-500.0,0.00031506,5]
[327943959,1716689474585,-500.0,0.00031506,5]
[327943960,1716689474594,-500.0,0.00031506,5]
[327943961,1716689474605,-500.0,0.00031506,5]
[327943962,1716689474614,-500.0,0.00031506,5]
[327943963,1716689474623,-1526.41,0.00031506,5]
[327943964,1716689474632,-500.0,0.00031506,5]
[327943965,1716689474642,-614.04349708,0.00031506,5]
[327943966,1716689474651,-500.0,0.00031506,5]
[327943967,1716689474660,-500.0,0.00031506,5]
[327943968,1716689474670,-500.0,0.00031506,5]
[327943969,1716689474679,-1236.1,0.00031506,5]
[327943970,1716689474688,-2317.12,0.00031506,5]
[327943971,1716689474697,-500.0,0.00031506,5]
[327943972,1716689474707,-1437.58,0.00031506,5]
[327943973,1716689474716,-3692.99,0.00031506,5]
[327943974,1716689474725,-2152.49,0.00031506,5]
[327943975,1716689474734,-500.0,0.00031506,5]
[327943976,1716689474744,-500.0,0.00031506,5]
[327943977,1716689474754,-500.0,0.00031506,5]
[327943978,1716689474763,-500.0,0.00031506,5]
[327943979,1716689474773,-1613.17,0.00031506,2]
[327943980,1716689474782,-699.63,0.00031506,5]
[327943981,1716689474792,-500.0,0.00031506,5]
[327943982,1716689474801,-500.0,0.00031506,5]
[327943983,1716689474810,-2548.61,0.00031506,5]
[327943984,1716689474819,-1752.19,0.00031506,5]
[327943985,1716689474828,-882.35,0.00031506,2]
[327943986,1716689474838,-1342.45,0.00031506,5]
[327943987,1716689474847,-5666.99,0.00031506,5]
[327943988,1716689474856,-500.0,0.00031506,5]
[327943989,1716689474866,-2118.61,0.00031506,5]
[327943990,1716689474875,-500.0,0.00031506,5]
[327943991,1716689474884,-901.6,0.00031506,5]
[327943992,1716689474893,-500.0,0.00031506,5]
[327943993,1716689474903,-805.87,0.00031506,5]
[327943994,1716689474912,-500.0,0.00031506,5]
[327943995,1716689474921,-500.0,0.00031506,5]
[327943996,1716689474930,-2125.94,0.00031506,5]
[327943997,1716689474939,-505.71447714,0.00031506,5]
[327943998,1716689474949,-500.0,0.00031506,5]
[327943999,1716689474959,-500.0,0.00031506,5]
[327944000,1716689474968,-500.0,0.00031506,5]
[327944001,1716689474978,-1963.15,0.00031506,5]
[327944002,1716689474987,-500.0,0.00031506,5]
[327944003,1716689474998,-529.26,0.00031506,5]
[327944004,1716689475007,-1571.35,0.00031506,5]
[327944005,1716689475016,-500.0,0.00031506,5]
[327944006,1716689475026,-500.0,0.00031506,5]
[327944007,1716689475036,-500.0,0.00031506,5]
[327944008,1716689475045,-500.0,0.00031506,5]
[327944009,1716689475054,-691.28,0.00031506,5]
[327944010,1716689475063,-500.0,0.00031506,5]
[327944011,1716689475073,-520.97237834,0.00031506,5]
[327944012,1716689475082,-522.30693006,0.00031506,5]
[327944013,1716689475091,-500.0,0.00031506,5]
[327944014,1716689475100,-505.64403693,0.00031506,5]
[327944015,1716689475110,-500.0,0.00031506,5]
[327944016,1716689475119,-494.53397244,0.00031506,5]
[327944017,1716689475129,-2002.14,0.00031506,5]
[327944018,1716689475138,-500.0,0.00031506,5]
[327944019,1716689475148,-500.0,0.00031506,5]
[327944020,1716689475157,-1147.01,0.00031506,5]
[327944021,1716689475166,-709.89,0.00031506,5]
[327944022,1716689475175,-500.0,0.00031506,5]
[327944023,1716689475184,-500.0,0.00031506,5]
[327944024,1716689475194,-500.0,0.00031506,5]
[327944025,1716689475203,-1013.94,0.00031506,5]
[327944026,1716689475212,-500.0,0.00031506,5]
[327944027,1716689475221,-523.59560393,0.00031506,5]
[327944028,1716689475231,-500.0,0.00031506,5]
[327944029,1716689475240,-509.86594861,0.00031506,5]
[327944030,1716689475250,-500.0,0.00031506,5]
[327944031,1716689475259,-1523.91,0.00031506,5]
[327944032,1716689475268,-500.0,0.00031506,5]
[327944033,1716689475279,-2343.93,0.00031506,5]
[327944034,1716689475288,-500.0,0.00031506,5]
[327944035,1716689475297,-539.83166502,0.00031506,5]
[327944036,1716689475307,-500.0,0.00031506,5]
[327944037,1716689475316,-525.0614329,0.00031506,5]
[327944038,1716689475326,-500.0,0.00031506,5]
[327944039,1716689475336,-1271.57,0.00031506,5]
[327944040,1716689475345,-1192.5,0.00031506,5]
[327944041,1716689475355,-1868.72,0.00031506,5]
[327944042,1716689475364,-726.18,0.00031506,5]
[327944043,1716689475373,-1412.09,0.00031506,5]
[327944044,1716689475383,-1449.97,0.00031506,5]
[327944045,1716689475392,-514.56811442,0.00031506,5]
[327944046,1716689475401,-500.0,0.00031506,5]
[327944047,1716689475410,-500.0,0.00031506,5]
[327944048,1716689475419,-500.0,0.00031506,5]
[327944049,1716689475429,-741.74,0.00031506,5]
[327944050,1716689475439,-591.1437683,0.00031506,5]
[327944051,1716689475452,-500.0,0.00031506,5]
[327944052,1716689475462,-2210.19,0.00031506,5]
[327944053,1716689475470,-507.8508883,0.00031506,5]
[327944054,1716689475480,-2127.22,0.00031506,5]
[327944055,1716689475490,-500.0,0.00031506,5]
[327944056,1716689475510,-1011.88,0.00031506,5]
[327944057,1716689475523,-1898.03,0.00031506,5]
[327944058,1716689475532,-1602.52,0.00031506,5]
[327944059,1716689475542,-552.5,0.00031506,5]
[327944060,1716689475552,-500.0,0.00031506,5]
[327944061,1716689475561,-500.0,0.00031506,5]
[327944062,1716689475571,-500.0,0.00031506,5]
[327944063,1716689475580,-1859.89,0.00031506,5]
[327944064,1716689475591,-749.19,0.00031506,5]
[327944065,1716689475600,-500.0,0.00031506,5]
[327944066,1716689475610,-500.0,0.00031506,5]
[327944067,1716689475620,-650.73,0.00031506,5]
[327944068,1716689475630,-500.0,0.00031506,5]
[327944069,1716689475639,-500.0,0.00031506,5]
[327944070,1716689475650,-500.0,0.00031506,5]
[327944071,1716689475659,-500.0,0.00031506,5]
[327944072,1716689475669,-3593.44,0.00031506,5]
[327944073,1716689475678,-1005.68,0.00031506,5]
[327944074,1716689475688,-1774.3,0.00031506,5]
[327944075,1716689475697,-524.03160028,0.00031506,5]
[327944076,1716689475707,-500.0,0.00031506,5]
[327944077,1716689475717,-9541.34,0.00031506,5]
[327944078,1716689475727,-1243.57,0.00031506,5]
[327944079,1716689475737,-500.0,0.00031506,5]
[327944080,1716689475748,-500.0,0.00031506,5]
[327944081,1716689475757,-754.05,0.00031506,5]
[327944082,1716689475767,-855.53,0.00031506,5]
[327944083,1716689475776,-5918.87,0.00031506,5]
[327944084,1716689475786,-500.0,0.00031506,5]
[327944085,1716689475795,-500.0,0.00031506,5]
[327944086,1716689475805,-1634.72,0.00031506,5]
[327944087,1716689475814,-1372.99,0.00031506,5]
[327944088,1716689475824,-500.0,0.00031506,5]
[327944089,1716689475834,-2488.51,0.00031506,5]
[327944090,1716689475843,-1168.62,0.00031506,5]
[327944091,1716689475853,-919.64,0.00031506,5]
[327944092,1716689476054,-465.35707663,0.00031506,2]
[327944093,1716689476064,-500.0,0.00031506,5]
[327944094,1716689476073,-500.0,0.00031506,5]
[327944095,1716689476083,-500.0,0.00031506,5]
[327944096,1716689476092,-500.0,0.00031506,5]
[327944097,1716689476101,-1301.95,0.00031506,5]
[327944098,1716689476111,-2657.35,0.00031506,5]
[327944099,1716689476120,-300.87,0.00031507,2]
[327944100,1716689476131,-150.0,0.00031507,2]
[327944101,1716689476140,-150.0,0.00031507,2]
[327944102,1716689476149,-150.0,0.00031507,2]
[327944103,1716689476159,-150.0,0.00031507,2]
[327944104,1716689476169,-150.0,0.00031507,2]
[327944105,1716689476178,-1009.26,0.00031515,2]
[327944106,1716689476188,-11604.32610441,0.00031516,3]
[327944107,1716689476197,-150.0,0.00031534,7]
[327944108,1716689476207,-150.0,0.00031534,7]
[327944109,1716689476216,-300.0,0.00031539,2]
[327944110,1716689476225,-81525.67047345,0.00031542,7]
[327944111,1716689476235,-3903.0381456,0.00031589,2]
[327944112,1716689476245,-150.0,0.00031618,7]
[327944113,1716689476255,-150.0,0.0003166,7]
[327944114,1716689476264,-150.0,0.00031702,7]
[327944115,1716689476273,-320.19229444,0.00031706,2]
[327944116,1716689476282,-2718.4398698,0.00031758,2]
[327944117,1716689476291,-405.0072565,0.00031758,2]
[327944118,1716689476303,-1450.2965541,0.00031758,2]
[327944119,1716689476315,-1550.3283881,0.00031758,2]
[327944120,1716689476325,-17185.710499,0.00031758,2]
[327944121,1716689476336,-17870.3530574,0.00031758,2]
[327944122,1716689476345,-407.4112546,0.00031758,2]
[327944123,1716689476354,-550.3836303,0.00031758,2]
[327944124,1716689476363,-6315.30563994,0.00031761,2]
[327944125,1716689476372,-28228.53317734,0.00031777,2]
[327944126,1716689476382,-500.0,0.0003178,5]
[327944127,1716689476391,-530.58057517,0.0003178,5]
[327944128,1716689476400,-500.0,0.0003178,5]
[327944129,1716689476410,-500.0,0.0003178,5]
[327944130,1716689476419,-500.0,0.0003178,5]
[327944131,1716689476428,-558.38429333,0.0003178,5]
[327944132,1716689476438,-500.0,0.0003178,5]
[327944133,1716689476453,-500.0,0.0003178,2]
[327944134,1716689476463,-500.0,0.0003178,5]
[327944135,1716689476473,-613.69250705,0.0003178,5]
[327944136,1716689476484,-500.0,0.0003178,5]
[327944137,1716689476495,-500.0,0.0003178,5]
[327944138,1716689476505,-500.0,0.0003178,5]
[327944139,1716689476515,-500.0,0.0003178,5]
[327944140,1716689476525,-520.50206511,0.0003178,5]
[327944141,1716689476535,-523.24382488,0.0003178,5]
[327944142,1716689476544,-500.0,0.0003178,5]
[327944143,1716689476553,-500.0,0.0003178,5]
[327944144,1716689476562,-500.0,0.0003178,5]
[327944145,1716689476572,-500.0,0.0003178,5]
[327944146,1716689476581,-500.0,0.0003178,5]
[327944147,1716689476590,-500.0,0.0003178,5]
[327944148,1716689476599,-1927.39,0.0003178,5]
[327944149,1716689476608,-500.0,0.0003178,5]
[327944150,1716689476617,-500.0,0.0003178,5]
[327944151,1716689476626,-500.0,0.0003178,5]
[327944152,1716689476635,-543.35,0.0003178,5]
[327944153,1716689476644,-500.0,0.0003178,5]
[327944154,1716689476653,-500.0,0.0003178,5]
[327944155,1716689476662,-500.0,0.0003178,5]
[327944156,1716689476672,-570.61848303,0.0003178,5]
[327944157,1716689476681,-500.0,0.0003178,5]
[327944158,1716689476691,-500.0,0.0003178,5]
[327944159,1716689476700,-553.4223316,0.0003178,5]
[327944160,1716689476709,-500.0,0.0003178,5]
[327944161,1716689476718,-500.0,0.0003178,5]
[327944162,1716689476728,-500.0,0.0003178,5]
[327944163,1716689476737,-500.0,0.0003178,5]
[327944164,1716689476748,-985.10479473,0.0003178,2]
[327944165,1716689476757,-518.95361635,0.0003178,5]
[327944166,1716689476767,-500.0,0.0003178,5]
[327944167,1716689476776,-500.0,0.0003178,5]
[327944168,1716689476785,-500.0,0.0003178,5]
[327944169,1716689476795,-500.0,0.0003178,5]
[327944170,1716689476804,-500.0,0.0003178,5]
[327944171,1716689476814,-500.0,0.0003178,5]
[327944172,1716689476823,-525.41141849,0.0003178,5]
[327944173,1716689476833,-500.0,0.0003178,5]
[327944174,1716689476841,-500.0,0.0003178,5]
[327944175,1716689476851,-500.0,0.0003178,5]
[327944176,1716689476860,-500.0,0.0003178,5]
[327944177,1716689476869,-500.0,0.0003178,5]
[327944178,1716689476879,-500.0,0.0003178,5]
[327944179,1716689476888,-500.0,0.0003178,5]
[327944180,1716689476897,-500.0,0.0003178,5]
[327944181,1716689476907,-500.0,0.0003178,2]
[327944182,1716689476917,-500.0,0.0003178,5]
[327944183,1716689476928,-611.13774051,0.0003178,5]
[327944184,1716689476938,-500.0,0.0003178,5]
[327944185,1716689476947,-500.0,0.0003178,5]
[327944186,1716689476957,-500.0,0.0003178,5]
[327944187,1716689476966,-500.0,0.0003178,5]
[327944188,1716689476976,-627.16,0.0003178,5]
[327944189,1716689476986,-500.0,0.0003178,5]
[327944190,1716689476995,-500.0,0.0003178,5]
[327944191,1716689477006,-500.0,0.0003178,5]
[327944192,1716689477016,-500.0,0.0003178,5]
[327944193,1716689477025,-500.0,0.0003178,5]
[327944194,1716689477034,-566.58,0.0003178,5]
[327944195,1716689477044,-522.01266651,0.0003178,5]
[327944196,1716689477053,-500.0,0.0003178,5]
[327944197,1716689477063,-500.0,0.0003178,5]
[327944198,1716689477071,-500.0,0.0003178,5]
[327944199,1716689477081,-500.0,0.0003178,5]
[327944200,1716689477091,-500.0,0.0003178,5]
[327944201,1716689477100,-500.0,0.0003178,5]
[327944202,1716689477109,-500.0,0.0003178,5]
[327944203,1716689477119,-500.0,0.0003178,5]
[327944204,1716689477128,-500.0,0.0003178,5]
[327944205,1716689477137,-500.0,0.0003178,5]
[327944206,1716689477147,-500.0,0.0003178,5]
[327944207,1716689477156,-500.0,0.0003178,5]
[327944208,1716689477165,-500.0,0.0003178,5]
[327944209,1716689477175,-500.0,0.0003178,5]
[327944210,1716689477184,-500.0,0.0003178,5]
[327944211,1716689477193,-500.0,0.0003178,5]
[327944212,1716689477202,-500.0,0.0003178,5]
[327944213,1716689477211,-500.0,0.0003178,5]
[327944214,1716689477220,-500.0,0.0003178,5]
[327944215,1716689477229,-500.0,0.0003178,5]
[327944216,1716689477238,-500.0,0.0003178,5]
[327944217,1716689477248,-500.0,0.0003178,5]
[327944218,1716689477257,-509.51,0.0003178,5]
[327944219,1716689477266,-500.0,0.0003178,2]
[327944220,1716689477276,-500.0,0.0003178,5]
[327944221,1716689477285,-500.0,0.0003178,5]
[327944222,1716689477294,-500.0,0.0003178,5]
[327944223,1716689477304,-587.49,0.0003178,5]
[327944224,1716689477313,-544.06721383,0.0003178,5]
[327944225,1716689477323,-500.0,0.0003178,5]
[327944226,1716689477332,-500.0,0.0003178,5]
[327944227,1716689477341,-550.17229502,0.0003178,5]
[327944228,1716689477351,-500.0,0.0003178,5]
[327944229,1716689477359,-492.49314163,0.0003178,5]
[327944230,1716689477369,-500.0,0.0003178,5]
[327944231,1716689477378,-500.0,0.0003178,5]
[327944232,1716689477387,-500.0,0.0003178,5]
[327944233,1716689477396,-500.0,0.0003178,5]
[327944234,1716689477406,-175.0,0.0003178,5]
[327944235,1716689477415,-542.70382899,0.0003178,5]
[327944236,1716689477424,-500.0,0.0003178,5]
[327944237,1716689477433,-500.0,0.0003178,5]
[327944238,1716689477443,-500.0,0.0003178,5]
[327944239,1716689477454,-500.0,0.0003178,5]
[327944240,1716689477463,-500.0,0.0003178,5]
[327944241,1716689477473,-500.0,0.0003178,5]
[327944242,1716689477482,-500.0,0.0003178,5]
[327944243,1716689477491,-500.0,0.0003178,5]
[327944244,1716689477500,-500.0,0.0003178,5]
[327944245,1716689477509,-500.0,0.0003178,5]
[327944246,1716689477519,-500.0,0.0003178,5]
[327944247,1716689477530,-500.0,0.0003178,5]
[327944248,1716689477539,-500.0,0.0003178,5]
[327944249,1716689477550,-500.0,0.0003178,5]
[327944250,1716689477559,-500.0,0.0003178,5]
[327944251,1716689477568,-500.0,0.0003178,5]
[327944252,1716689477578,-500.0,0.0003178,5]
[327944253,1716689477587,-549.10975619,0.0003178,5]
[327944254,1716689477596,-500.0,0.0003178,5]
[327944255,1716689477605,-441.38071624,0.0003178,5]
[327944256,1716689477614,-500.0,0.0003178,5]
[327944257,1716689477623,-500.0,0.0003178,5]
[327944258,1716689477632,-812.03,0.0003178,5]
[327944259,1716689477641,-500.0,0.0003178,5]
[327944260,1716689477651,-520.45800968,0.0003178,5]
[327944261,1716689477661,-500.0,0.0003178,5]
[327944262,1716689477671,-500.0,0.0003178,5]
[327944263,1716689477681,-715.15,0.0003178,5]
[327944264,1716689477690,-500.0,0.0003178,5]
[327944265,1716689477699,-500.0,0.0003178,5]
[327944266,1716689477708,-500.0,0.0003178,5]
[327944267,1716689477718,-415.07256706,0.0003178,5]
[327944268,1716689477727,-500.0,0.0003178,5]
[327944269,1716689477736,-551.4875513,0.0003178,5]
[327944270,1716689477752,-500.0,0.0003178,5]
[327944271,1716689477774,-500.0,0.0003178,5]
[327944272,1716689477783,-500.0,0.0003178,5]
[327944273,1716689477792,-295.57502125,0.0003178,5]
[327944274,1716689477802,-500.0,0.0003178,5]
[327944275,1716689477811,-526.04677657,0.0003178,5]
[327944276,1716689477820,-500.0,0.0003178,5]
[327944277,1716689477829,-500.0,0.0003178,5]
[327944278,1716689477838,-500.0,0.0003178,5]
[327944279,1716689477848,-500.0,0.0003178,5]
[327944280,1716689477857,-500.0,0.0003178,5]
[327944281,1716689477866,-500.0,0.0003178,5]
[327944282,1716689477875,-500.0,0.0003178,5]
[327944283,1716689477884,-600.20426643,0.0003178,5]
[327944284,1716689477894,-500.0,0.0003178,5]
[327944285,1716689477903,-530.01884901,0.0003178,5]
[327944286,1716689477912,-250.66812467,0.0003178,5]
[327944287,1716689477921,-500.0,0.0003178,5]
[327944288,1716689477931,-500.0,0.0003178,5]
[327944289,1716689477940,-250.54833951,0.0003178,5]
[327944290,1716689477950,-500.0,0.0003178,5]
[327944291,1716689477960,-500.0,0.0003178,5]
[327944292,1716689477970,-500.0,0.0003178,5]
[327944293,1716689477981,-531.25694272,0.0003178,5]
[327944294,1716689477991,-500.0,0.0003178,5]
[327944295,1716689478002,-500.0,0.0003178,5]
[327944296,1716689478011,-519.14604394,0.0003178,5]
[327944297,1716689478021,-500.0,0.0003178,5]
[327944298,1716689478030,-500.0,0.0003178,2]
[327944299,1716689478039,-500.0,0.0003178,5]
[327944300,1716689478049,-500.0,0.0003178,5]
[327944301,1716689478057,-630.18876567,0.0003178,5]
[327944302,1716689478067,-500.0,0.0003178,5]
[327944303,1716689478076,-500.0,0.0003178,5]
[327944304,1716689478085,-500.0,0.0003178,5]
[327944305,1716689478094,-163.96088333,0.0003178,5]
[327944306,1716689478104,-500.0,0.0003178,5]
[327944307,1716689478112,-520.61626063,0.0003178,5]
[327944308,1716689478122,-791.92,0.0003178,5]
[327944309,1716689478131,-500.0,0.0003178,5]
[327944310,1716689478141,-500.0,0.0003178,5]
[327944311,1716689478149,-500.0,0.0003178,5]
[327944312,1716689478159,-500.0,0.0003178,5]
[327944313,1716689478168,-500.0,0.0003178,5]
[327944314,1716689478178,-538.24309427,0.0003178,5]
[327944315,1716689478186,-535.44378716,0.0003178,5]
[327944316,1716689478195,-500.0,0.0003178,5]
[327944317,1716689478204,-500.0,0.0003178,5]
[327944318,1716689478354,-1533.82,0.0003178,5]
[327944319,1716689478363,-500.0,0.0003178,5]
[327944320,1716689478373,-500.0,0.0003178,5]
[327944321,1716689478382,-500.0,0.0003178,5]
[327944322,1716689478391,-500.0,0.0003178,5]
[327944323,1716689478400,-1324.01,0.0003178,5]
[327944324,1716689478410,-510.72,0.0003178,5]
[327944325,1716689478419,-500.0,0.0003178,5]
[327944326,1716689478428,-520.09015889,0.0003178,5]
[327944327,1716689478437,-500.0,0.0003178,5]
[327944328,1716689478450,-518.7015619,0.0003178,5]
[327944329,1716689478459,-500.0,0.0003178,5]
[327944330,1716689478469,-500.0,0.0003178,5]
[327944331,1716689478478,-500.0,0.0003178,5]
[327944332,1716689478487,-500.0,0.0003178,5]
[327944333,1716689478499,-500.0,0.0003178,5]
[327944334,1716689478508,-745.95,0.0003178,5]
[327944335,1716689478518,-500.0,0.0003178,5]
[327944336,1716689478528,-500.0,0.0003178,5]
[327944337,1716689478537,-643.54,0.0003178,5]
[327944338,1716689478546,-1399.66,0.0003178,5]
[327944339,1716689478556,-514.66841952,0.0003178,5]
[327944340,1716689478565,-500.0,0.0003178,2]
[327944341,1716689478575,-500.0,0.0003178,5]
[327944342,1716689478584,-549.86,0.0003178,5]
[327944343,1716689478593,-500.0,0.0003178,5]
[327944344,1716689478604,-500.0,0.0003178,5]
[327944345,1716689478614,-500.0,0.0003178,5]
[327944346,1716689478624,-500.0,0.0003178,5]
[327944347,1716689478635,-500.0,0.0003178,5]
[327944348,1716689478646,-340.57772849,0.0003178,5]
[327944349,1716689478656,-510.7331294,0.0003178,5]
[327944350,1716689478665,-642.01,0.0003178,5]
[327944351,1716689478674,-500.0,0.0003178,5]
[327944352,1716689478684,-500.0,0.0003178,5]
[327944353,1716689478693,-500.0,0.0003178,5]
[327944354,1716689478704,-703.66,0.0003178,5]
[327944355,1716689478714,-500.0,0.0003178,5]
[327944356,1716689478726,-3714.68,0.0003178,5]
[327944357,1716689478737,-500.0,0.0003178,5]
[327944358,1716689478746,-500.0,0.0003178,5]
[327944359,1716689478757,-500.0,0.0003178,5]
[327944360,1716689478766,-651.9,0.0003178,5]
[327944361,1716689478775,-646.42738716,0.0003178,5]
[327944362,1716689478785,-500.0,0.0003178,5]
[327944363,1716689478796,-620.85,0.0003178,5]
[327944364,1716689478807,-500.0,0.0003178,5]
[327944365,1716689478817,-500.0,0.0003178,5]
[327944366,1716689478827,-500.0,0.0003178,5]
[327944367,1716689478837,-1054.23,0.0003178,5]
[327944368,1716689478846,-500.0,0.0003178,5]
[327944369,1716689478857,-500.0,0.0003178,5]
[327944370,1716689478866,-236.98057256,0.0003178,5]
[327944371,1716689478875,-500.0,0.0003178,5]
[327944372,1716689478884,-521.45,0.0003178,5]
[327944373,1716689478893,-500.0,0.0003178,5]
[327944374,1716689478903,-782.44,0.0003178,5]
[327944375,1716689478913,-500.0,0.0003178,5]
[327944376,1716689478922,-1229.45,0.0003178,5]
[327944377,1716689478932,-500.0,0.0003178,5]
[327944378,1716689478942,-500.0,0.0003178,5]
[327944379,1716689478952,-633.37,0.0003178,5]
[327944380,1716689478961,-500.0,0.0003178,5]
[327944381,1716689478970,-500.0,0.0003178,5]
[327944382,1716689478979,-500.0,0.0003178,2]
[327944383,1716689478988,-649.42,0.0003178,5]
[327944384,1716689478998,-500.0,0.0003178,5]
[327944385,1716689479009,-500.0,0.0003178,5]
[327944386,1716689479018,-500.0,0.0003178,5]
[327944387,1716689479027,-848.23,0.0003178,5]
[327944388,1716689479037,-1479.33,0.0003178,5]
[327944389,1716689479046,-500.0,0.0003178,5]
[327944390,1716689479058,-500.0,0.0003178,5]
[327944391,1716689479067,-656.31,0.0003178,5]
[327944392,1716689479077,-500.0,0.0003178,5]
[327944393,1716689479088,-500.0,0.0003178,5]
[327944394,1716689479098,-20000.0,0.0003178,2]
[327944395,1716689479107,-500.0,0.0003178,5]
[327944396,1716689479116,-500.0,0.0003178,5]
[327944397,1716689479126,-500.0,0.0003178,5]
[327944398,1716689479135,-1156.98,0.0003178,5]
[327944399,1716689479144,-500.0,0.0003178,5]
[327944400,1716689479154,-507.44,0.0003178,5]
[327944401,1716689479163,-500.0,0.0003178,5]
[327944402,1716689479173,-500.0,0.0003178,5]
[327944403,1716689479183,-500.0,0.0003178,5]
[327944404,1716689479192,-500.0,0.0003178,5]
[327944405,1716689479201,-1130.57,0.0003178,5]
[327944406,1716689479211,-739.5621314,0.0003178,2]
[327944407,1716689479220,-627.87,0.0003178,5]
[327944408,1716689479229,-834.9,0.0003178,5]
[327944409,1716689479239,-437.68750562,0.0003178,5]
[327944410,1716689479249,-500.0,0.0003178,5]
[327944411,1716689479259,-1005.78,0.0003178,5]
[327944412,1716689479267,-500.0,0.0003178,5]
[327944413,1716689479277,-500.0,0.0003178,5]
[327944414,1716689479286,-500.0,0.0003178,5]
[327944415,1716689479295,-500.0,0.0003178,5]
[327944416,1716689479304,-500.0,0.0003178,5]
[327944417,1716689479313,-1521.04,0.0003178,5]
[327944418,1716689479322,-554.15979557,0.0003178,5]
[327944419,1716689479331,-934.1,0.0003178,5]
[327944420,1716689479340,-1113.26,0.0003178,5]